fUST/lending_fUST_20240711
["ID","MTS","AMOUNT","RATE_DAILY","PERIOD"]
[331695877,1720654239602,-128034.615808,0.0002876,3]
[331695878,1720654239612,-52798.51586653,0.0002877,2]
[331695891,1720654244168,-633.980316,0.00023966,2]
[331695892,1720654244180,-91.52126415,0.00023966,2]
[331695893,1720654244190,-877.60873585,0.00027184,2]
[331695909,1720654362907,761.0,0.0002522,120]
[331695917,1720655009476,2564.51552667,0.00016255,2]
[331695919,1720655102674,1105.86744094,0.00016255,2]
[331695920,1720655134939,662.40219375,0.00016255,2]
[331695921,1720655246147,-250.0,0.00018196,2]
[331695922,1720655246167,-201.08454688,0.00018196,2]
[331695924,1720655254221,1159.46314868,0.00016255,2]
[331695925,1720655285630,550.52508381,0.00016255,2]
[331695927,1720655293304,11041.25352559,0.00016255,2]
[331695929,1720655317670,1105.86744094,0.00016255,2]
[331695930,1720655321351,725.50158015,0.00016255,2]
[331695931,1720655360102,-151.11175224,0.00018097,2]
[331695932,1720655360122,-300.0,0.00018196,2]
[331695933,1720655360142,-300.0,0.00018196,2]
[331695934,1720655360165,-24642.41429474,0.00018197,2]
[331695935,1720655363118,-257.58570526,0.00018197,2]
[331695936,1720655363140,-154.62117811,0.00019165,2]
[331695937,1720655363160,-157.64341,0.00019178,2]
[331695938,1720655363181,-287.0,0.00020015,2]
[331695939,1720655363200,-162.004425,0.00020974,2]
[331695940,1720655363222,-380.719073,0.00021096,2]
[331695941,1720655363243,-166.49151,0.00021096,2]
[331695942,1720655363263,-402.60952539,0.00021917,2]
[331695943,1720655363284,-14.38801354,0.00021917,2]
[331695944,1720655366097,-163.03737012,0.00021095,2]
[331695945,1720655366120,-333.97587972,0.00021917,2]
[331695946,1720655366140,-166.666666,0.00021918,2]
[331695947,1720655366338,-165.20623857,0.0002243,2]
[331695948,1720655366360,-166.666666,0.00022431,2]
[331695949,1720655366380,-250.0,0.00022457,2]
[331695950,1720655366400,-155.17707025,0.00022579,2]
[331695951,1720655366420,-160.0869779,0.00022941,2]
[331695952,1720655366441,-159.72145129,0.00022941,2]
[331695953,1720655366461,-154.66746495,0.00022943,2]
[331695954,1720655366482,-166.666666,0.00022944,2]
[331695955,1720655366502,-246.88426168,0.00023046,2]
[331696125,1720655437766,-250.15986304,0.000189,2]
[331696126,1720655437776,-725.50158015,0.00019164,2]
[331696127,1720655437786,-33231.49573898,0.000198,2]
[331696128,1720655437798,-1150.26515868,0.000198,2]
[331696129,1720655437820,-17760.25152987,0.000198,2]
[331696131,1720655437829,-376.70138687,0.00021095,2]
[331696132,1720655437839,-818.28861643,0.00021185,2]
[331696133,1720655437848,-629.91443082,0.00022244,2]
[331696134,1720655437858,-160.0869779,0.0002243,2]
[331696135,1720655437868,-179.90875741,0.00022943,2]
[331696136,1720655437878,-191.04644475,0.00023146,2]
[331696137,1720655437888,-620.49572154,0.00023356,2]
[331696138,1720655437898,-518.1114155,0.00023453,2]
[331696139,1720655437907,-156.37674716,0.00023453,2]
[331696140,1720655437918,-166.666666,0.00023456,2]
[331696141,1720655437928,-250.15986304,0.000239,2]
[331696142,1720655437939,-480.66437544,0.00023966,2]
[331696143,1720655437948,-166.666666,0.00023969,2]
[331696144,1720655437958,-1435.70778162,0.0002448,2]
[331696145,1720655437968,-1987.94718132,0.0002448,2]
[331696146,1720655437978,-154.62117811,0.00024481,2]
[331696147,1720655437987,-166.666666,0.00024482,2]
[331696148,1720655437997,-620.02478608,0.00024524,2]
[331696149,1720655438006,-252.40548947,0.00024988,2]
[331696150,1720655438015,-220.96281516,0.00025062,2]
[331696151,1720655438024,-214.72,0.00025144,3]
[331696152,1720655438034,-178.93,0.00025144,3]
[331696153,1720655438044,-536.83,0.00025144,3]
[331696154,1720655438054,-86460.150526,0.00025154,3]
[331696155,1720655438065,-229.22032487,0.00025156,2]
[331696156,1720655438075,-189.26423783,0.0002522,2]
[331696157,1720655438086,-220.96281514,0.00025232,2]
[331696158,1720655438096,-16898.44008208,0.00025401,2]
[331696159,1720655438107,-220.96281514,0.00025401,2]
[331696160,1720655438117,-150.5,0.00025471,62]
[331696161,1720655438127,-150.5,0.00025481,62]
[331696162,1720655438137,-282.06803579,0.0002549,2]
[331696163,1720655438147,-500.0,0.0002549,2]
[331696164,1720655438156,-500.0,0.0002549,2]
[331696165,1720655438168,-500.0,0.0002549,2]
[331696166,1720655438179,-500.0,0.0002549,2]
[331696167,1720655438189,-500.0,0.0002549,2]
[331696168,1720655438344,-500.0,0.0002549,2]
[331696169,1720655438355,-505.66003821,0.0002549,2]
[331696170,1720655438366,-544.03907908,0.0002549,2]
[331696171,1720655438376,-500.0,0.0002549,2]
[331696172,1720655438386,-192.39470163,0.0002549,2]
[331696173,1720655438396,-500.0,0.0002549,2]
[331696174,1720655438407,-570.66666884,0.0002549,2]
[331696175,1720655438417,-500.0,0.0002549,2]
[331696176,1720655438426,-500.0,0.0002549,2]
[331696177,1720655438437,-500.0,0.0002549,2]
[331696178,1720655438447,-500.0,0.0002549,2]
[331696179,1720655438457,-12490.02097302,0.00025491,5]
[331696180,1720655438468,-150.5,0.00025491,62]
[331696181,1720655438478,-86460.150526,0.00025491,3]
[331696182,1720655438488,-30000.0,0.00025501,2]
[331696183,1720655438499,-154.62117811,0.00025501,2]
[331696184,1720655438509,-777.60346913,0.00025501,2]
[331696185,1720655438519,-2420.55776569,0.00025501,2]
[331696186,1720655438529,-620.00000012,0.00025687,2]
[331696187,1720655438539,-620.0012393,0.0002575,2]
[331696188,1720655438550,-16898.44008204,0.00025875,2]
[331696189,1720655438560,-50745.6994812,0.00026339,3]
[331696190,1720655438573,-35714.4510448,0.00026339,3]
[331696191,1720655438583,-16898.44008204,0.00026349,2]
[331696192,1720655438593,-202.14376802,0.00026367,2]
[331696193,1720655438603,-7458.94652043,0.0002649,2]
[331696194,1720655438612,-357.86,0.00026514,3]
[331696195,1720655438622,-16898.44008204,0.00026823,2]
[331696196,1720655438633,-16738.20104803,0.00026838,5]
[331696197,1720655438642,-86460.150526,0.00026838,3]
[331696198,1720655438652,-647.806311,0.00026838,7]
[331696199,1720655438663,-647.806311,0.00026838,7]
[331696200,1720655438673,-151.0,0.00026838,7]
[331696201,1720655438683,-173.14965076,0.00026878,2]
[331696202,1720655438693,-500.0,0.00026878,2]
[331696203,1720655438704,-500.0,0.00026878,2]
[331696204,1720655438714,-500.0,0.00026878,2]
[331696205,1720655438724,-230.5509408,0.00026878,2]
[331696206,1720655438734,-154.40893818,0.00026878,2]
[331696207,1720655438744,-359.61992807,0.00026878,2]
[331696208,1720655438754,-500.0,0.00026878,2]
[331696209,1720655438764,-500.0,0.00026878,2]
[331696210,1720655438775,-288.64343489,0.00026878,2]
[331696211,1720655438785,-500.0,0.00026878,2]
[331696212,1720655438795,-500.0,0.00026878,2]
[331696213,1720655438806,-251.73394965,0.00026878,2]
[331696214,1720655438816,-500.0,0.00026878,2]
[331696215,1720655438826,-500.0,0.00026878,2]
[331696216,1720655438836,-500.0,0.00026878,2]
[331696217,1720655438846,-500.0,0.00026878,2]
[331696218,1720655438856,-86460.150526,0.00026879,3]
[331696219,1720655438867,-88888.0,0.0002689,3]
[331696220,1720655438877,-53235.36412871,0.00027,2]
[331696221,1720655438887,-18957.9585867,0.00027,4]
[331696222,1720655438897,-647.806311,0.00027,7]
[331696223,1720655438906,-647.806311,0.00027,7]
[331696224,1720655438917,-151.0,0.00027,7]
[331696225,1720655438928,-620.00006197,0.00027038,2]
[331696226,1720655438939,-240.12803383,0.00027194,2]
[331696227,1720655438951,-380.719073,0.00027195,2]
[331696228,1720655438961,-16898.44008204,0.00027297,2]
[331696229,1720655438971,-151.0,0.00027297,7]
[331696230,1720655438981,-500.0,0.00027397,2]
[331696231,1720655438992,-500.0,0.00027397,2]
[331696232,1720655439002,-500.0,0.00027397,2]
[331696233,1720655439012,-500.0,0.00027397,2]
[331696234,1720655439022,-572.88380577,0.00027397,2]
[331696235,1720655439033,-572.81896294,0.00027397,2]
[331696236,1720655439043,-500.0,0.00027397,2]
[331696237,1720655439054,-500.0,0.00027397,2]
[331696238,1720655439064,-500.0,0.00027397,2]
[331696239,1720655439074,-500.0,0.00027397,2]
[331696240,1720655439084,-500.0,0.00027397,2]
[331696241,1720655439095,-500.0,0.00027397,2]
[331696242,1720655439105,-500.0,0.00027397,2]
[331696243,1720655439115,-500.0,0.00027397,2]
[331696244,1720655439126,-500.0,0.00027397,2]
[331696245,1720655439136,-500.0,0.00027397,2]
[331696246,1720655439147,-500.0,0.00027397,2]
[331696247,1720655439157,-500.0,0.00027397,2]
[331696248,1720655439167,-500.0,0.00027397,2]
[331696249,1720655439177,-500.0,0.00027397,2]
[331696250,1720655439187,-500.0,0.00027397,2]
[331696251,1720655439199,-500.0,0.00027397,2]
[331696252,1720655439209,-198.88431547,0.00027397,2]
[331696253,1720655439220,-500.0,0.00027397,2]
[331696255,1720655439230,-500.0,0.00027397,2]
[331696256,1720655439241,-500.0,0.00027397,2]
[331696257,1720655439252,-500.0,0.00027397,2]
[331696258,1720655439262,-801.10204708,0.00027397,2]
[331696259,1720655439272,-801.10204708,0.00027397,2]
[331696260,1720655439283,-801.10204708,0.00027397,2]
[331696262,1720655439293,-801.10204708,0.00027397,2]
[331696263,1720655439303,-801.10204708,0.00027397,2]
[331696264,1720655439314,-801.10204708,0.00027397,2]
[331696265,1720655439324,-801.10204708,0.00027397,2]
[331696266,1720655439335,-801.10204708,0.00027397,2]
[331696267,1720655439346,-801.10204708,0.00027397,2]
[331696268,1720655439355,-801.10204708,0.00027397,2]
[331696269,1720655439365,-801.10204708,0.00027397,2]
[331696270,1720655439375,-801.10204708,0.00027397,2]
[331696271,1720655439386,-801.10204708,0.00027397,2]
[331696272,1720655439396,-801.10204708,0.00027397,2]
[331696274,1720655439406,-801.10204708,0.00027397,2]
[331696275,1720655439417,-801.10204708,0.00027397,2]
[331696276,1720655439426,-801.10204708,0.00027397,2]
[331696277,1720655439437,-801.10204708,0.00027397,2]
[331696278,1720655439447,-801.10204708,0.00027397,2]
[331696279,1720655439457,-801.10204708,0.00027397,2]
[331696280,1720655439467,-801.10204708,0.00027397,2]
[331696281,1720655439477,-801.10204708,0.00027397,2]
[331696282,1720655439488,-801.10204708,0.00027397,2]
[331696283,1720655439498,-801.10204708,0.00027397,2]
[331696284,1720655439507,-801.10204708,0.00027397,2]
[331696285,1720655439517,-801.10204708,0.00027397,2]
[331696286,1720655439527,-801.10204708,0.00027397,2]
[331696287,1720655439536,-801.10204708,0.00027397,2]
[331696288,1720655439546,-801.10204708,0.00027397,2]
[331696289,1720655439556,-801.10204708,0.00027397,2]
[331696291,1720655439566,-801.10204708,0.00027397,2]
[331696292,1720655439576,-801.10204708,0.00027397,2]
[331696293,1720655439585,-801.10204708,0.00027397,2]
[331696294,1720655439595,-801.10204708,0.00027397,2]
[331696295,1720655439605,-801.10204708,0.00027397,2]
[331696296,1720655439614,-801.10204708,0.00027397,2]
[331696298,1720655439624,-801.10204708,0.00027397,2]
[331696299,1720655439634,-801.10204708,0.00027397,2]
[331696300,1720655439644,-801.10204708,0.00027397,2]
[331696301,1720655439653,-801.10204708,0.00027397,2]
[331696302,1720655439663,-801.10204708,0.00027397,2]
[331696303,1720655439672,-801.10204708,0.00027397,2]
[331696304,1720655439682,-801.10204708,0.00027397,2]
[331696305,1720655439692,-801.10204708,0.00027397,2]
[331696306,1720655439702,-801.10204708,0.00027397,2]
[331696307,1720655439712,-801.10204708,0.00027397,2]
[331696308,1720655439722,-801.10204708,0.00027397,2]
[331696310,1720655439732,-801.10204708,0.00027397,2]
[331696311,1720655439742,-801.10204708,0.00027397,2]
[331696312,1720655439752,-801.10204708,0.00027397,2]
[331696313,1720655439762,-801.10204708,0.00027397,2]
[331696314,1720655439771,-801.10204708,0.00027397,2]
[331696315,1720655439781,-801.10204708,0.00027397,2]
[331696317,1720655439791,-801.10204708,0.00027397,2]
[331696319,1720655439801,-801.10204708,0.00027397,2]
[331696321,1720655439811,-785.08000613,0.00027397,2]
[331696322,1720655439821,-785.08000613,0.00027397,2]
[331696324,1720655439831,-785.08000613,0.00027397,2]
[331696326,1720655439840,-785.08000613,0.00027397,2]
[331696328,1720655439849,-785.08000613,0.00027397,2]
[331696330,1720655439859,-785.08000613,0.00027397,2]
[331696331,1720655439869,-785.08000613,0.00027397,2]
[331696333,1720655439879,-785.08000613,0.00027397,2]
[331696334,1720655439888,-785.08000613,0.00027397,2]
[331696335,1720655439898,-785.08000613,0.00027397,2]
[331696337,1720655439908,-785.08000613,0.00027397,2]
[331696338,1720655439919,-785.08000613,0.00027397,2]
[331696339,1720655439929,-785.08000613,0.00027397,2]
[331696340,1720655439939,-785.08000613,0.00027397,2]
[331696341,1720655439948,-785.08000613,0.00027397,2]
[331696342,1720655439958,-785.08000613,0.00027397,2]
[331696343,1720655439968,-785.08000613,0.00027397,2]
[331696344,1720655439977,-785.08000613,0.00027397,2]
[331696345,1720655439986,-785.08000613,0.00027397,2]
[331696346,1720655439995,-785.08000613,0.00027397,2]
[331696347,1720655440004,-785.08000613,0.00027397,2]
[331696348,1720655440014,-785.08000613,0.00027397,2]
[331696349,1720655440023,-785.08000613,0.00027397,2]
[331696350,1720655440032,-785.08000613,0.00027397,2]
[331696351,1720655440042,-785.08000613,0.00027397,2]
[331696352,1720655440052,-158.527152,0.00027397,120]
[331696353,1720655440062,-151.0,0.00027397,7]
[331696354,1720655440072,-609.5236,0.00027397,7]
[331696355,1720655440082,-609.5236,0.00027397,7]
[331696356,1720655440092,-609.5236,0.00027397,7]
[331696357,1720655440104,-609.5236,0.00027397,7]
[331696358,1720655440114,-609.5236,0.00027397,7]
[331696359,1720655440124,-609.5236,0.00027397,7]
[331696360,1720655440134,-244.694622,0.00027397,7]
[331696361,1720655440143,-244.694622,0.00027397,7]
[331696362,1720655440152,-244.694622,0.00027397,7]
[331696363,1720655440163,-244.694622,0.00027397,7]
[331696364,1720655440172,-151.0,0.00027397,7]
[331696365,1720655440182,-244.694622,0.00027397,7]
[331696366,1720655440194,-244.694622,0.00027397,7]
[331696367,1720655440203,-151.0,0.00027397,7]
[331696368,1720655440213,-151.0,0.00027397,7]
[331696369,1720655440224,-236.898733,0.00027397,7]
[331696370,1720655440234,-236.898733,0.00027397,7]
[331696371,1720655440243,-236.898733,0.00027397,7]
[331696372,1720655440253,-151.0,0.00027397,2]
[331696373,1720655440262,-151.0,0.00027397,2]
[331696374,1720655440271,-239.350443,0.00027397,7]
[331696375,1720655440280,-236.898733,0.00027397,7]
[331696376,1720655440290,-236.898733,0.00027397,7]
[331696377,1720655440299,-236.898733,0.00027397,7]
[331696378,1720655440308,-155.34845,0.00027397,7]
[331696379,1720655440318,-151.0,0.00027397,7]
[331696380,1720655440327,-151.0,0.00027397,7]
[331696381,1720655440336,-152.480649,0.00027397,7]
[331696382,1720655440346,-151.0,0.00027397,7]
[331696383,1720655440355,-151.0,0.00027397,7]
[331696384,1720655440365,-151.0,0.00027397,7]
[331696385,1720655440374,-151.0,0.00027397,7]
[331696386,1720655440384,-151.0,0.00027397,7]
[331696387,1720655440393,-268.844495,0.00027397,7]
[331696388,1720655440403,-268.844495,0.00027397,7]
[331696389,1720655440413,-268.844495,0.00027397,7]
[331696390,1720655440422,-268.844495,0.00027397,7]
[331696391,1720655440431,-151.0,0.00027397,7]
[331696392,1720655440441,-151.0,0.00027397,7]
[331696393,1720655440451,-293.419543,0.00027397,7]
[331696394,1720655440460,-242.181083,0.00027397,7]
[331696395,1720655440474,-242.181083,0.00027397,7]
[331696396,1720655440483,-242.181083,0.00027397,7]
[331696397,1720655440492,-242.181083,0.00027397,7]
[331696398,1720655440502,-340.2454482,0.00027399,2]
[331696399,1720655440511,-103660.73577376,0.000274,2]
[331696400,1720655440520,-609.5236,0.000274,7]
[331696401,1720655440530,-609.5236,0.000274,7]
[331696402,1720655440539,-244.694622,0.000274,7]
[331696403,1720655440549,-244.694622,0.000274,7]
[331696404,1720655440559,-239.63397,0.000274,7]
[331696405,1720655440568,-236.898733,0.000274,7]
[331696406,1720655440577,-236.898733,0.000274,7]
[331696407,1720655440587,-164.910585,0.000274,7]
[331696408,1720655440596,-151.0,0.000274,7]
[331696409,1720655440605,-151.0,0.000274,7]
[331696410,1720655440614,-268.844495,0.000274,7]
[331696411,1720655440623,-268.844495,0.000274,7]
[331696412,1720655440633,-151.0,0.000274,7]
[331696413,1720655440642,-647.806311,0.000274,7]
[331696414,1720655440653,-647.806311,0.000274,7]
[331696415,1720655440663,-242.181083,0.000274,7]
[331696416,1720655440672,-151.0,0.000274,7]
[331696417,1720655440682,-242.181083,0.000274,7]
[331696418,1720655440691,-204.652162,0.00027458,7]
[331696419,1720655440703,-151.0,0.00027458,7]
[331696420,1720655440714,-170.930027,0.00027458,7]
[331696421,1720655440724,-170.930027,0.00027458,7]
[331696422,1720655440734,-151.0,0.00027458,7]
[331696423,1720655440744,-323274.78211143,0.00027468,2]
[331696424,1720655440754,-170.930027,0.00027468,7]
[331696425,1720655440764,-170.930027,0.00027468,7]
[331696426,1720655440774,-151.0,0.00027468,7]
[331696427,1720655440784,-609.5236,0.00027468,7]
[331696428,1720655440794,-609.5236,0.00027468,7]
[331696429,1720655440804,-244.694622,0.00027468,7]
[331696430,1720655440814,-244.694622,0.00027468,7]
[331696431,1720655440826,-236.898733,0.00027468,7]
[331696432,1720655440836,-236.898733,0.00027468,7]
[331696433,1720655440846,-151.0,0.00027468,7]
[331696434,1720655440856,-268.844495,0.00027468,7]
[331696435,1720655440867,-268.844495,0.00027468,7]
[331696436,1720655440879,-151.0,0.00027468,7]
[331696437,1720655440890,-647.806311,0.00027468,7]
[331696438,1720655440900,-647.806311,0.00027468,7]
[331696439,1720655440911,-242.181083,0.00027468,7]
[331696440,1720655440920,-151.0,0.00027468,7]
[331696441,1720655440929,-242.181083,0.00027468,7]
[331696442,1720655440938,-43664.05653873,0.000275,2]
[331696443,1720655440947,-1343.96727085,0.000279,2]
[331696444,1720655440959,-285.76057688,0.00027934,2]
[331696445,1720655440968,-348.36389326,0.00027934,2]
[331696446,1720655440976,-159.72145129,0.00027934,2]
[331696447,1720655441076,-164.83119203,0.00027934,2]
[331696448,1720655441086,-13814.74944117,0.0002799,2]
[331696449,1720655441096,-492.75452642,0.00027999,2]
[331696450,1720655441105,-229.31696231,0.00028,30]
[331696451,1720655441114,-268.65851187,0.00028,2]
[331696452,1720655441123,-526.22705313,0.00028,2]
[331696453,1720655441132,-724.65442926,0.00028176,2]
[331696454,1720655441141,-300.75929111,0.00028344,2]
[331696455,1720655441151,-620.0000031,0.0002839,2]
[331696456,1720655441160,-300.0,0.0002853,2]
[331696457,1720655441169,-503.64031218,0.00028626,2]
[331696458,1720655441178,-366.6405652,0.00028632,2]
[331696459,1720655441188,-5292.88975486,0.00028743,2]
[331696460,1720655441198,-17291.24657897,0.0002877,2]
[331696486,1720655443213,-350.35041317,0.00019165,2]
[331696508,1720655658956,6043.77839438,0.00016255,2]
[331696512,1720655678076,359.01191263,0.00016255,2]
[331696513,1720655722182,1105.45150955,0.00016255,2]
[331696514,1720655747710,1500.0,0.00016255,2]
[331696515,1720655778881,725.50158015,0.00016255,2]
[331696516,1720655796327,2132.45671248,0.00016255,2]
[331696517,1720655841948,555.56822747,0.00016255,2]
[331696519,1720655930460,159.72145129,0.00016255,2]
[331696520,1720655956084,240.12803383,0.00016255,2]
[331696521,1720655958412,5979.95084557,0.00016255,2]
[331696522,1720655960817,164.83119203,0.00016255,2]
[331696523,1720655964018,891.21441476,0.00016255,2]
[331696524,1720655964547,348.36389326,0.00016255,2]
[331696525,1720655971910,725.50158015,0.00016255,2]
[331696526,1720655976378,156.37674716,0.00016255,2]
[331696527,1720655977024,390.39607893,0.00016255,2]
[331696528,1720655979541,348.36389326,0.00016255,2]
[331696529,1720655991374,156.37674716,0.00016255,2]
[331696530,1720655994232,209.20626597,0.00016255,2]
[331696531,1720655997567,154.62117811,0.00016255,2]
[331696532,1720656016906,480.66437544,0.00016255,2]
[331696533,1720656033428,154.62117811,0.00016255,2]
[331696534,1720656041381,154.62117811,0.00016255,2]
[331696535,1720656058718,160.0869779,0.00016255,2]
[331696536,1720656075807,5210.0005731,0.00016255,2]
[331696537,1720656076286,5503.49557759,0.00016255,2]
[331696539,1720656116131,934.55932162,0.00016255,2]
[331696540,1720656120307,316.35340858,0.00016255,2]
[331696541,1720656120415,10583.55970307,0.00016255,2]
[331696542,1720656121947,286.97734619,0.00016255,2]
[331696543,1720656122245,251.32501429,0.00016255,2]
[331696544,1720656146463,159.72145129,0.00016255,2]
[331696545,1720656161890,399.73261016,0.00016255,2]
[331696546,1720656169921,207.92285488,0.00016255,2]
[331696547,1720656183092,240.12803383,0.00016255,2]
[331696548,1720656185539,348.36389326,0.00016255,2]
[331696549,1720656193294,5503.49557759,0.00016255,2]
[331696550,1720656198551,169.48525826,0.00016255,2]
[331696551,1720656206885,156.37674716,0.00016255,2]
[331696552,1720656207170,480.66437544,0.00016255,2]
[331696553,1720656221397,3132.64292851,0.00016255,4]
[331696554,1720656230835,5210.0005731,0.00016255,2]
[331696555,1720656231699,340.2454482,0.00016255,2]
[331696556,1720656238293,524.02241824,0.00016255,2]
[331696557,1720656238399,729.24536882,0.00016255,2]
[331696558,1720656249470,232.91862498,0.00016255,2]
[331696559,1720656253024,195.08976043,0.00016255,2]
[331696560,1720656270804,154.62117811,0.00016255,2]
[331696561,1720656276422,10583.55970307,0.00016255,2]
[331696564,1720656309965,286.97734619,0.00016255,2]
[331696565,1720656322468,188.60320581,0.00016255,2]
[331696567,1720656333555,2564.51552667,0.00016255,2]
[331696568,1720656341796,5503.49557759,0.00016255,2]
[331696569,1720656343036,777.60346913,0.00016255,2]
[331696570,1720656349540,348.36389326,0.00016255,2]
[331696572,1720656395402,154.62117811,0.00016255,2]
[331696573,1720656396825,5210.0005731,0.00016255,2]
[331696574,1720656403186,566.66102029,0.00016255,2]
[331696575,1720656404175,312.13436732,0.00016255,2]
[331696576,1720656426941,10587.41086128,0.00016255,2]
[331696577,1720656427904,156.37674716,0.00016255,2]
[331696578,1720656429920,1039.06688618,0.00016255,2]
[331696579,1720656435156,-161.769972,0.00018898,2]
[331696580,1720656446301,524.02241824,0.00016255,2]
[331696581,1720656451148,-138.230028,0.00018898,2]
[331696582,1720656451171,-300.0,0.00018898,2]
[331696583,1720656451194,-240.12803383,0.00018899,2]
[331696584,1720656451216,-100.43246187,0.00018899,2]
[331696585,1720656457980,232.91862498,0.00016255,2]
[331696586,1720656468582,835.05153819,0.00016255,2]
[331696587,1720656476558,2564.51552667,0.00016255,2]
[331696588,1720656502812,5503.49557759,0.00016255,2]
[331696589,1720656528049,231.73644906,0.00016255,2]
[331696590,1720656532990,230.13225334,0.00016255,2]
[331696591,1720656534552,348.36389326,0.00016255,2]
[331696592,1720656537098,511.39547482,0.00016255,2]
[331696593,1720656545054,530.20355034,0.00016255,2]
[331696594,1720656546137,-4790.0005269,0.00018899,2]
[331696595,1720656546167,-610.34337005,0.00018899,2]
[331696596,1720656546192,-10587.41086128,0.00018899,2]
[331696597,1720656546226,-182.98250828,0.00018899,2]
[331696598,1720656546254,-250.0,0.00019041,2]
[331696599,1720656546281,-1399.7295083,0.00019163,2]
[331696600,1720656546308,-201.00821583,0.00019165,2]
[331696601,1720656546334,-382.113187,0.00019423,2]
[331696602,1720656546360,-298.11885452,0.00019703,2]
[331696603,1720656546385,-296.77930474,0.00019703,2]
[331696604,1720656546407,-202.65775004,0.00019703,2]
[331696605,1720656546432,-243.35971817,0.00019703,2]
[331696606,1720656546457,-525.56960238,0.00019703,2]
[331696607,1720656546481,-240.12803383,0.00019703,2]
[331696608,1720656546506,-160.90780212,0.00019703,2]
[331696609,1720656546531,-2564.51552667,0.00019703,2]
[331696610,1720656546556,-294.67476711,0.00019703,2]
[331696611,1720656546580,-163.172918,0.00019825,2]
[331696612,1720656546606,-170.86914236,0.0002,2]
[331696613,1720656546632,-438.742173,0.00021096,2]
[331696614,1720656546656,-24900.0,0.00021433,2]
[331696615,1720656546680,-1269.84617735,0.00021817,2]
[331696616,1720656546704,-166.666666,0.00021918,2]
[331696617,1720656546729,-880.25528941,0.0002243,2]
[331696618,1720656546753,-880.25528941,0.0002243,2]
[331696619,1720656546775,-210.4016838,0.0002243,2]
[331696621,1720656566089,-298.11885452,0.00019703,2]
[331696622,1720656566112,-251.88114548,0.0002243,2]
[331696623,1720656573380,-30.47169714,0.0002243,2]
[331696624,1720656573406,-524.02241824,0.0002243,2]
[331696625,1720656573427,-403.6290569,0.0002243,2]
[331696626,1720656573447,-166.666666,0.00022431,2]
[331696627,1720656573467,-156.37674716,0.00022579,2]
[331696628,1720656573486,-240.12803383,0.00022906,2]
[331696629,1720656573505,-213.79491032,0.00022941,2]
[331696630,1720656573525,-599.14160025,0.00022942,2]
[331696631,1720656573544,-155.87096788,0.00022943,2]
[331696632,1720656573563,-283.43817222,0.00022943,2]
[331696633,1720656573582,-166.666666,0.00022944,2]
[331696634,1720656573604,-232.9149795,0.0002323,2]
[331696672,1720656632087,-1722.88154682,0.00019333,2]
[331696674,1720656632097,-524.02241824,0.00021095,2]
[331696676,1720656632106,-599.14160025,0.00021095,2]
[331696677,1720656632115,-156.37674716,0.00021917,2]
[331696679,1720656632125,-309.08818984,0.00022943,2]
[331696681,1720656632133,-190.9913538,0.00022943,2]
[331696682,1720656632142,-191.056593,0.0002299,2]
[331696683,1720656632152,-491.73944976,0.0002323,2]
[331696684,1720656632161,-209.28660365,0.00023453,2]
[331696685,1720656632170,-154.77557542,0.00023453,2]
[331696686,1720656632179,-209.28660365,0.00023453,2]
[331696687,1720656632188,-166.666666,0.00023456,2]
[331696688,1720656632198,-156.3,0.00023966,2]
[331696689,1720656632208,-166.666666,0.00023969,2]
[331696690,1720656632218,-1722.88154682,0.00024333,2]
[331696691,1720656632228,-166.666666,0.00024482,2]
[331696692,1720656632236,-1111.11540519,0.00024994,2]
[331696693,1720656632247,-229.22032487,0.00025009,2]
[331696694,1720656632257,-3171.07945793,0.00025052,2]
[331696716,1720656637991,-159.666389,0.00023905,2]
[331696717,1720656638001,-1687.97826284,0.00025052,2]